Workbook

Sheet Sheet1
A1: Unit | B1: Mo Assess | C1: Annual Assess | D1: 2024 Taxes | E1: Tax PIN | G1: 2025 Expenses
A2: Storefront 1143 | B2: 375.77 | C2: =+B2*12 -> 4509.24 | D2: 34235.38 | E2: 17-04-404-026-1002 | G2: Cleaning | H2: 3200
A3: Storefront 1145 | B3: 249.17 | C3: =+B3*12 -> 2990.04 | D3: 22720.78 | E3: 17-04-404-026-1003 | G3: Plumbing | H3: 280
A4: Commercial Total Assessments & Taxes | C4: =+C2+C3 -> 7499.28 | D4: =+D2+D3 -> 56956.16 | G4: Internet | H4: 816
G5: Carpet | H5: 4280
A6: 207 | B6: 448.5 | C6: =+B6*12 -> 5382 | D6: 5641.74 | E6: 17-04-404-026-1013 | G6: Insurance | H6: 4222
A7: 210 | B7: 351.53 | C7: =+B7*12 -> 4218.36 | D7: 4421.96 | E7: 17-04-404-026-1016 | H7: =SUM(H2:H6) -> 12798
A8: 211 | B8: 422.91 | C8: =+B8*12 -> 5074.92 | D8: 5319.92 | E8: 17-04-404-026-1017
A9: 305 | B9: 359.61 | C9: =+B9*12 -> 4315.32 | D9: 4523.59 | E9: 17-04-404-026-1025
A10: 312 | B10: 352.87 | C10: =+B10*12 -> 4234.44 | D10: 4438.85 | E10: 17-04-404-026-1032
A12: Residential Total Assessments & Taxes | C12: =SUM(C6:C11) -> 23225.04 | D12: =SUM(D6:D11) -> 24346.06
A13: Restaurant Income $12,100/mo | B13: 145200
A14: 2025 Airbnb Residential Income | B14: 235570.92
A15: Airbnb Credit | B15: 870
A16: Airbnb Deduct | B16: -9313.02
A18: 2025 Adjusted Income | B18: =SUM(B13:B17) -> 372327.9
A20: Less Res. Expenses | B20: =+H7*-1 -> -12798
A21: Less Res. Assessments | B21: =SUM(C6:C10)*-1 -> -23225.04
A22: Less 2024 Res. RE Taxes | B22: =+D12*-1 -> -24346.06
A23: Less 2024 Commercial RE Taxes | B23: =(+D2+D3)*-1 -> -56956.16
A24: Less Commercial Assessment | B24: =+C4*-1 -> -7499.28
A26: Total Net Income | B26: =SUM(B18:B24) -> 247503.36
A29: Cap Rate | B29: =+B26/3275000 -> 0.07557354504
A33: 2026-04-23
